bitfinex-derivatives/quotes_BTCF0:USTF0_20210703
["timestamp","ask_amount","ask_price","bid_price","bid_amount"]
[1625298661853,0.24057544,34401.0,34400.0,0.24057544]
[1625298661954,0.29757544,34401.0,34400.0,0.24057544]
[1625298662054,0.35657544,34401.0,34400.0,0.24057544]
[1625298662154,0.41557544,34401.0,34400.0,0.24057544]
[1625298662455,0.35657544,34401.0,34400.0,0.24057544]
[1625298662556,0.41557544,34401.0,34399.0,0.16212167]
[1625298662854,0.41557544,34401.0,34398.0,0.48629933]
[1625298663204,3.8093,34399.0,34398.0,0.48629933]
[1625298663362,3.8663,34399.0,34398.0,0.48629933]
[1625298663455,3.9843,34399.0,34398.0,0.48629933]
[1625298663556,3.9843,34399.0,34392.0,0.48690345]
[1625298663557,0.175,34399.0,34392.0,0.48690345]
[1625298663805,0.116,34399.0,34392.0,0.48690345]
[1625298663906,0.116,34399.0,34396.0,0.24057544]
[1625298664205,0.116,34399.0,34397.0,0.16257695]
[1625298664307,0.175,34399.0,34397.0,0.16257695]
[1625298664554,0.116,34399.0,34397.0,0.16257695]
[1625298664656,0.116,34399.0,34397.0,0.48805889]
[1625298664958,0.059,34399.0,34398.0,0.48749892]
[1625298665211,0.059,34399.0,34398.0,0.48796393]
[1625298665708,0.059,34399.0,34398.0,0.81329647]
[1625298665909,0.059,34399.0,34398.0,0.48796393]
[1625298666561,0.057,34400.0,34398.0,0.48796393]
[1625298666662,0.116,34400.0,34398.0,0.48796393]
[1625298666764,0.057,34400.0,34398.0,0.48796393]
[1625298666862,0.116,34400.0,34398.0,0.48796393]
[1625298666964,0.057,34400.0,34398.0,0.48796393]
[1625298667064,0.057,34400.0,34399.0,0.16208326]
[1625298667164,0.116,34400.0,34399.0,0.16208326]
[1625298667413,0.116,34400.0,34397.0,0.16222551]
[1625298667714,0.116,34400.0,34396.0,0.7272729]
[1625298667816,0.175,34400.0,34396.0,0.48669746]
[1625298667915,0.29757544,34397.0,34396.0,0.48669746]
[1625298668016,0.29757544,34397.0,34394.0,1.26625308]
[1625298668017,0.41557544,34397.0,34394.0,0.78004468]
[1625298668116,0.41557544,34397.0,34394.0,0.48714468]
[1625298668413,0.41557544,34397.0,34392.0,1.13665436]
[1625298668414,0.41557544,34397.0,34393.0,0.48712811]
[1625298668916,0.35857544,34397.0,34393.0,0.48712811]
[1625298669066,0.29957544,34397.0,34395.0,0.48674181]
[1625298669165,0.29957544,34397.0,34395.0,0.76731181]
[1625298669416,0.29957544,34397.0,34396.0,0.48632315]
[1625298669515,0.24057544,34397.0,34396.0,0.48632315]
[1625298669767,0.24057544,34397.0,34396.0,1.13429571]
[1625298670116,0.29957544,34397.0,34396.0,1.13429571]
[1625298670219,0.35857544,34397.0,34396.0,1.13429571]
[1625298670367,0.29957544,34397.0,34396.0,1.13429571]
[1625298670619,0.35857544,34397.0,34396.0,1.13429571]
[1625298670767,0.35857544,34397.0,34396.0,0.81051971]
[1625298671018,0.41557544,34397.0,34396.0,0.81051971]
[1625298671368,0.41557544,34397.0,34396.0,0.48661194]
[1625298671720,0.41557544,34397.0,34395.0,0.1623609]
[1625298672073,0.41557544,34397.0,34395.0,0.48698417]
[1625298672472,0.41557544,34397.0,34396.0,0.16224744]
[1625298672775,0.41557544,34397.0,34395.0,0.4868891]
[1625298673076,0.41557544,34397.0,34394.0,0.48752073]
[1625298673726,0.41557544,34397.0,34394.0,0.16250691]
[1625298673927,0.057,34395.0,34394.0,0.16250691]
[1625298674026,0.057,34395.0,34394.0,0.48753178]
[1625298674126,0.175,34395.0,34394.0,0.48753178]
[1625298674678,0.175,34395.0,34394.0,0.32502487]
[1625298675331,0.175,34395.0,34394.0,0.48755441]
[1625298675731,0.116,34395.0,34394.0,0.48755441]
[1625298675832,0.175,34395.0,34394.0,0.48755441]
[1625298676332,0.059,34395.0,34394.0,0.48755441]
[1625298676984,0.059,34395.0,34394.0,1.13871923]
[1625298677383,0.118,34395.0,34394.0,2.1153966]
[1625298678084,0.24057544,34396.0,34394.0,2.1153966]
[1625298678184,0.24057544,34396.0,34394.0,2.3667866]
[1625298678384,0.24057544,34396.0,34394.0,2.4257866]
[1625298678488,0.24057544,34396.0,34395.0,3.25313063]
[1625298678686,0.24057544,34396.0,34395.0,3.31213063]
[1625298678887,0.24057544,34396.0,34395.0,4.67292892]
[1625298679097,0.057,34412.0,34395.0,4.67292892]
[1625298679192,0.116,34412.0,34395.0,4.67292892]
[1625298679289,0.175,34412.0,34395.0,4.67292892]
[1625298679638,0.175,34412.0,34402.0,0.6501767]
[1625298679738,0.175,34412.0,34404.0,0.48763252]
[1625298679939,0.24057544,34411.0,34409.0,0.24057544]
[1625298680095,0.057,34410.0,34409.0,0.24057544]
[1625298680191,0.116,34410.0,34409.0,0.24057544]
[1625298681641,0.059,34410.0,34409.0,0.24057544]
[1625298681743,0.24057544,34411.0,34409.0,0.24057544]
[1625298681841,0.29957544,34411.0,34409.0,0.52128544]
[1625298682042,0.35657544,34411.0,34409.0,0.52128544]
[1625298682243,0.29957544,34411.0,34409.0,0.52128544]
[1625298686601,0.29957544,34411.0,34409.0,1.00975725]
[1625298688152,0.24057544,34411.0,34409.0,1.00975725]
[1625298688353,0.29957544,34411.0,34409.0,1.00975725]
[1625298688605,0.24057544,34411.0,34410.0,0.81362942]
[1625298689006,0.24057544,34411.0,34410.0,0.87262942]
[1625298689107,0.24057544,34411.0,34410.0,1.19775223]
[1625298689205,0.24057544,34417.0,34410.0,1.25675223]
[1625298689404,0.24057544,34421.0,34410.0,1.25675223]
[1625298689757,0.24057544,34421.0,34414.0,0.48626975]
[1625298689959,0.24057544,34421.0,34420.0,0.24057544]
[1625298690058,0.24057544,34421.0,34420.0,0.71721088]
[1625298692113,0.24057544,34421.0,34420.0,0.83521088]
[1625298692463,0.24057544,34421.0,34420.0,0.77621088]
[1625298692617,0.24057544,34425.0,34420.0,0.71721088]
[1625298692815,0.24057544,34425.0,34420.0,0.83521088]
[1625298693065,0.057,34434.0,34420.0,0.99670773]
[1625298693268,0.116,34434.0,34420.0,0.99670773]
[1625298693367,0.175,34434.0,34420.0,0.99670773]
[1625298693465,0.175,34434.0,34420.0,1.49670773]
[1625298693566,0.118,34434.0,34420.0,1.81905649]
[1625298693716,0.059,34434.0,34420.0,1.81905649]
[1625298694015,0.059,34434.0,34433.0,0.72172632]
[1625298694116,0.059,34434.0,34433.0,1.01671632]
[1625298694968,0.24057544,34443.0,34433.0,1.01671632]
[1625298695071,0.41557544,34443.0,34433.0,1.01671632]
[1625298695171,0.35657544,34443.0,34433.0,1.01671632]
[1625298695370,0.41557544,34443.0,34433.0,1.01671632]
[1625298696073,0.41557544,34443.0,34442.0,0.48115088]
[1625298696925,0.29957544,34443.0,34442.0,0.48115088]
[1625298697230,0.24057544,34443.0,34442.0,0.48115088]
[1625298697428,0.29957544,34443.0,34442.0,0.48115088]
[1625298697528,0.059,34443.0,34442.0,0.48115088]
[1625298697628,0.057,34446.0,34442.0,0.48115088]
[1625298697728,0.116,34446.0,34442.0,0.48115088]
[1625298698078,0.24057544,34443.0,34442.0,0.48115088]
[1625298698179,0.29957544,34443.0,34442.0,0.48115088]
[1625298701533,0.059,34443.0,34442.0,0.48115088]
[1625298704091,0.29957544,34443.0,34442.0,0.48115088]
[1625298704190,0.35657544,34443.0,34442.0,0.48115088]
[1625298704440,0.29957544,34443.0,34442.0,0.48115088]
[1625298704640,0.24057544,34443.0,34442.0,0.48115088]
[1625298704792,0.29957544,34443.0,34442.0,0.48115088]
[1625298705741,0.35657544,34443.0,34442.0,0.48115088]
[1625298705891,0.29957544,34443.0,34442.0,0.48115088]
[1625298706291,0.35657544,34443.0,34442.0,0.48115088]
[1625298706495,0.057,34443.0,34442.0,0.48115088]
[1625298706593,0.24057544,34447.0,34442.0,0.83196088]
[1625298706695,0.24057544,34447.0,34442.0,0.77296088]
[1625298706792,0.29957544,34447.0,34442.0,0.77296088]
[1625298706942,0.35657544,34447.0,34442.0,0.77296088]
[1625298708145,0.35657544,34447.0,34446.0,0.24057544]
[1625298710249,0.41557544,34447.0,34442.0,0.24057544]
[1625298710350,0.61662544,34447.0,34433.0,0.48115088]
[1625298712202,0.24057544,34434.0,34433.0,0.54015088]
[1625298712556,0.24057544,34437.0,34433.0,0.54015088]
[1625298712658,0.24057544,34437.0,34433.0,0.48115088]
[1625298712857,0.29957544,34437.0,34433.0,0.48115088]
[1625298713008,0.057,34436.0,34433.0,0.48115088]
[1625298713106,0.24768,34436.0,34433.0,0.48115088]
[1625298713207,0.19068,34436.0,34433.0,0.48115088]
[1625298714759,0.057,34435.0,34433.0,0.48115088]
[1625298715061,0.116,34435.0,34433.0,0.48115088]
[1625298715361,0.175,34435.0,34433.0,0.48115088]
[1625298716015,0.175,34435.0,34433.0,0.24057544]
[1625298716164,0.24057544,34434.0,34433.0,0.24057544]
[1625298716264,0.35657544,34434.0,34433.0,0.24057544]
[1625298716365,0.41557544,34434.0,34433.0,0.24057544]
[1625298716865,0.35657544,34434.0,34433.0,0.24057544]
[1625298717365,0.41557544,34434.0,34433.0,0.24057544]
[1625298717867,0.41557544,34434.0,34429.0,0.24057544]
[1625298718169,0.24057544,34430.0,34429.0,0.24057544]
[1625298718318,0.41557544,34430.0,34429.0,0.24057544]
[1625298720271,0.41557544,34430.0,34425.0,0.24057544]
[1625298721426,0.35857544,34430.0,34425.0,0.24057544]
[1625298721975,0.057,34429.0,34425.0,0.24057544]
[1625298722076,0.175,34429.0,34425.0,0.24057544]
[1625298722176,0.24057544,34426.0,34425.0,0.24057544]
[1625298722376,0.29957544,34426.0,34425.0,0.24057544]
[1625298722876,0.24057544,34426.0,34425.0,0.24057544]
[1625298724686,0.24057544,34426.0,34425.0,0.32777544]
[1625298724786,0.29957544,34426.0,34425.0,0.24057544]
[1625298724887,0.24057544,34426.0,34425.0,0.24057544]
[1625298725038,0.29957544,34426.0,34425.0,0.24057544]
[1625298725136,0.24057544,34426.0,34425.0,0.24057544]
[1625298725237,0.29957544,34426.0,34425.0,0.24057544]
[1625298725437,0.24057544,34426.0,34425.0,0.24057544]
[1625298726338,0.29957544,34426.0,34425.0,0.24057544]
[1625298729098,0.29957544,34426.0,34425.0,0.32807544]
[1625298729200,0.29957544,34426.0,34425.0,0.24057544]
[1625298730650,0.54779544,34426.0,34425.0,0.24057544]
[1625298730752,0.54779544,34426.0,34419.0,0.24057544]
[1625298732304,0.24057544,34420.0,34419.0,0.24057544]
[1625298732704,0.24057544,34420.0,34419.0,0.29957544]
[1625298732802,0.24057544,34420.0,34419.0,0.24057544]
[1625298733755,0.24057544,34420.0,34419.0,0.29957544]
[1625298734306,0.24057544,34420.0,34419.0,0.24057544]
[1625298734812,0.24057544,34420.0,34419.0,0.29957544]
[1625298735258,0.24057544,34420.0,34419.0,0.24057544]
[1625298735909,0.29757544,34420.0,34419.0,0.24057544]
[1625298736260,0.24057544,34420.0,34419.0,0.24057544]
[1625298736760,0.24057544,34420.0,34419.0,0.29957544]
[1625298739619,0.24057544,34420.0,34419.0,0.35857544]
[1625298740822,0.24057544,34420.0,34419.0,0.29957544]
[1625298741574,0.32817544,34420.0,34419.0,0.29957544]
[1625298741724,0.24057544,34420.0,34419.0,0.29957544]
[1625298741925,0.24057544,34420.0,34419.0,0.35857544]
[1625298742025,0.24057544,34420.0,34419.0,0.29957544]
[1625298745180,0.29757544,34420.0,34419.0,0.29957544]
[1625298745433,0.24057544,34420.0,34419.0,0.29957544]
[1625298745632,0.29757544,34420.0,34419.0,0.29957544]
[1625298747538,0.29757544,34420.0,34419.0,0.38687544]
[1625298747637,0.29757544,34420.0,34419.0,0.29957544]
[1625298748889,0.24057544,34420.0,34419.0,0.29957544]
[1625298754547,0.29757544,34420.0,34419.0,0.29957544]
[1625298756000,0.24057544,34420.0,34419.0,0.29957544]
[1625298756601,0.29757544,34420.0,34419.0,0.29957544]
[1625298760508,0.29757544,34420.0,34416.0,0.55911789]
[1625298760660,0.29757544,34420.0,34416.0,0.07989713]
[1625298761460,0.29757544,34420.0,34415.0,0.23974515]
[1625298761809,0.29757544,34420.0,34415.0,0.07993183]
[1625298762213,0.29757544,34420.0,34414.0,0.55937545]
[1625298762361,0.24057544,34415.0,34414.0,0.85895089]
[1625298762561,0.49458544,34415.0,34414.0,0.85895089]
[1625298763112,0.49458544,34415.0,34414.0,0.77920494]
[1625298763211,0.55158544,34415.0,34414.0,0.72020494]
[1625298764063,0.55158544,34415.0,34414.0,0.48025523]
[1625298764312,0.55158544,34415.0,34414.0,0.23967979]
[1625298764613,0.55158544,34415.0,34412.0,0.55869958]
[1625298765918,0.55158544,34415.0,34413.0,0.07980537]
[1625298767068,0.55158544,34415.0,34413.0,0.23941194]
[1625298767370,0.55158544,34415.0,34413.0,0.55873239]
[1625298768421,0.61058544,34415.0,34413.0,0.55873239]
[1625298768925,0.61058544,34415.0,34410.0,0.32051822]
[1625298769074,0.61058544,34415.0,34410.0,0.37951822]
[1625298769576,0.61058544,34415.0,34410.0,0.85958447]
[1625298770425,0.29757544,34411.0,34410.0,0.85958447]
[1625298770627,0.29757544,34411.0,34410.0,0.5395403]
[1625298770729,0.35657544,34411.0,34410.0,0.5395403]
[1625298770828,0.29757544,34411.0,34410.0,0.5395403]
[1625298771130,0.35657544,34411.0,34410.0,0.5395403]
[1625298771579,0.29757544,34411.0,34410.0,0.5395403]
[1625298772433,0.29757544,34411.0,34410.0,0.29957544]
[1625298772784,0.29757544,34411.0,34410.0,0.3796312]
[1625298773133,0.35657544,34411.0,34410.0,0.3796312]
[1625298773284,0.35657544,34411.0,34410.0,0.48079097]
[1625298773638,0.35657544,34411.0,34410.0,0.24057544]
[1625298774836,0.35657544,34411.0,34408.0,0.08016231]
[1625298775137,0.35657544,34411.0,34407.0,0.32071379]
[1625298775538,0.41557544,34411.0,34407.0,0.24057544]
[1625298776238,0.35657544,34411.0,34407.0,0.24057544]
[1625298776490,0.29757544,34408.0,34407.0,0.24057544]
[1625298776588,0.57942544,34408.0,34407.0,0.24057544]
[1625298777740,0.52242544,34408.0,34407.0,0.24057544]
[1625298777941,0.57942544,34408.0,34407.0,0.24057544]
[1625298778494,0.57942544,34408.0,34406.0,0.08017213]
[1625298778644,0.63842544,34408.0,34406.0,0.08017213]
[1625298779097,0.63842544,34408.0,34405.0,0.08016673]
[1625298779548,0.63842544,34408.0,34404.0,0.2405164]
[1625298779948,0.63842544,34408.0,34404.0,0.08018294]
[1625298780301,0.63842544,34408.0,34403.0,0.8019018]
[1625298780501,0.29757544,34404.0,34403.0,0.8019018]
[1625298780800,0.29757544,34404.0,34403.0,0.48117006]
[1625298781049,0.29757544,34404.0,34403.0,0.24059462]
[1625298781400,0.29757544,34404.0,34402.0,0.80200861]
[1625298781401,0.29757544,34404.0,34402.0,0.0802583]
[1625298782203,0.29757544,34404.0,34401.0,0.24083124]
[1625298782555,0.29757544,34402.0,34401.0,0.08031464]
[1625298783807,0.29757544,34402.0,34400.0,0.56224568]
[1625298784158,0.29757544,34402.0,34400.0,0.24098712]
[1625298784660,0.29757544,34402.0,34400.0,0.29998712]
[1625298785262,0.35657544,34402.0,34400.0,0.29998712]
[1625298785362,0.35657544,34402.0,34400.0,0.24098712]
[1625298785563,0.35657544,34402.0,34399.0,0.24057544]
[1625298788770,0.35657544,34402.0,34397.0,0.08026022]
[1625298788870,0.35657544,34402.0,34397.0,0.13926022]
[1625298788969,0.35657544,34402.0,34397.0,0.059]
[1625298789771,0.35657544,34402.0,34396.0,0.08025171]
[1625298789972,0.35657544,34402.0,34395.0,0.32080744]
[1625298790572,0.24057544,34396.0,34395.0,0.32080744]
[1625298790672,0.29757544,34396.0,34395.0,0.32080744]
[1625298790872,0.29757544,34396.0,34395.0,0.24057544]
[1625298791273,0.29757544,34396.0,34395.0,0.32081542]
[1625298791827,0.29757544,34396.0,34395.0,0.24057544]
[1625298792673,0.29757544,34396.0,34395.0,0.29957544]
[1625298794632,0.29757544,34396.0,34395.0,0.86065639]
[1625298795682,0.29757544,34396.0,34395.0,0.4810387]
[1625298797135,0.29757544,34396.0,34395.0,0.80164687]
[1625298797236,0.29757544,34396.0,34395.0,0.4810387]
[1625298798087,0.29757544,34396.0,34395.0,0.32072986]
[1625298798388,0.29757544,34396.0,34395.0,0.48106544]
[1625298798589,0.057,34401.0,34396.0,0.48115088]
[1625298798690,0.24057544,34408.0,34396.0,0.48115088]
[1625298798790,0.24057544,34408.0,34396.0,0.54015088]
[1625298798892,0.24057544,34408.0,34396.0,0.59915088]
[1625298798990,0.29957544,34408.0,34396.0,0.59915088]
[1625298799139,0.29957544,34408.0,34399.0,0.24020893]
[1625298799240,0.29957544,34408.0,34400.0,4.2131]
[1625298799492,0.29957544,34408.0,34400.0,0.059]
[1625298799591,0.29957544,34408.0,34400.0,0.67824997]
[1625298799592,0.057,34407.0,34400.0,0.67824997]
[1625298799792,0.057,34407.0,34400.0,0.61924997]
[1625298799892,0.057,34407.0,34400.0,0.56024997]
[1625298799994,0.057,34407.0,34401.0,0.24006664]
[1625298800442,0.057,34407.0,34401.0,0.13902221]
[1625298800646,0.24057544,34402.0,34401.0,0.13902221]
[1625298800897,0.24057544,34402.0,34401.0,0.059]
[1625298801247,0.24057544,34402.0,34401.0,0.13910251]
[1625298801598,0.24057544,34402.0,34401.0,0.29951538]
[1625298801949,0.24057544,34402.0,34401.0,0.54065352]
[1625298802807,0.24057544,34402.0,34401.0,0.86177077]
[1625298803254,0.24057544,34402.0,34401.0,0.54076358]
[1625298803703,0.24057544,34402.0,34401.0,0.8617832]
[1625298804606,0.24057544,34402.0,34401.0,0.54054255]
[1625298805658,0.24057544,34402.0,34401.0,1.18384622]
[1625298806009,0.24057544,34402.0,34401.0,0.54054255]
[1625298807060,0.24057544,34402.0,34401.0,1.18422347]
[1625298807315,0.24057544,34402.0,34401.0,1.24322347]
[1625298807411,0.24057544,34402.0,34401.0,1.18422347]
[1625298808214,0.24057544,34402.0,34401.0,0.54195359]
[1625298808716,0.24057544,34402.0,34401.0,0.86388974]
[1625298809066,0.24057544,34402.0,34401.0,0.54192068]
[1625298809466,0.24057544,34402.0,34401.0,0.60092068]
[1625298809567,0.24057544,34402.0,34401.0,0.54192068]
[1625298810570,0.24057544,34402.0,34401.0,0.60092068]
[1625298810672,0.24057544,34402.0,34401.0,1.24516771]
[1625298810771,0.24057544,34402.0,34401.0,1.18616771]
[1625298810922,0.24057544,34402.0,34401.0,1.12716771]
[1625298811473,0.24057544,34402.0,34401.0,1.18616771]
[1625298811622,0.24057544,34402.0,34401.0,1.12716771]
[1625298811723,0.24057544,34402.0,34401.0,1.18616771]
[1625298812378,0.24057544,34402.0,34401.0,0.62301469]
[1625298812877,0.29757544,34402.0,34401.0,0.62301469]
[1625298813027,0.29757544,34402.0,34401.0,0.54244116]
[1625298813327,0.29757544,34402.0,34401.0,0.30071274]
[1625298814028,0.29757544,34402.0,34401.0,0.62299425]
[1625298814328,0.29757544,34402.0,34401.0,0.30071274]
[1625298814629,0.29757544,34402.0,34401.0,0.56399733]
[1625298814980,0.29757544,34402.0,34401.0,0.24171274]
[1625298815280,0.29757544,34402.0,34401.0,0.30071274]
[1625298815381,0.29757544,34402.0,34401.0,0.62308735]
[1625298815732,0.29757544,34402.0,34401.0,0.56408735]
[1625298817036,0.29757544,34402.0,34401.0,0.08056569]
[1625298817441,0.29757544,34402.0,34401.0,0.56441184]
[1625298817638,0.35657544,34402.0,34401.0,0.56441184]
[1625298818138,0.35657544,34402.0,34400.0,0.80530436]
[1625298818638,0.35657544,34402.0,34400.0,0.321251]
[1625298819239,0.35657544,34402.0,34400.0,0.24057544]
[1625298819942,0.41557544,34402.0,34400.0,0.24057544]
[1625298820244,0.41557544,34402.0,34400.0,0.32116186]
[1625298820594,0.41557544,34402.0,34400.0,0.24057544]
[1625298820744,0.057,34400.0,34398.0,0.2417874]
[1625298820945,0.057,34400.0,34396.0,0.88534185]
[1625298821046,0.116,34400.0,34396.0,0.64476641]
[1625298821147,0.175,34400.0,34396.0,0.64476641]
[1625298821646,0.116,34400.0,34396.0,0.64476641]
[1625298821797,0.116,34400.0,34386.0,0.46]
[1625298821946,0.175,34400.0,34386.0,1.3476]
[1625298822197,0.175,34400.0,34390.0,0.64559095]
[1625298822397,0.175,34400.0,34390.0,0.70459095]
[1625298822596,0.175,34400.0,34390.0,0.64559095]
[1625298822747,0.48115088,34391.0,34390.0,0.64559095]
[1625298822848,0.48115088,34391.0,34390.0,0.96805358]
[1625298822999,0.24057544,34391.0,34390.0,1.02705358]
[1625298823098,0.24057544,34396.0,34390.0,1.36681358]
[1625298823202,0.24057544,34396.0,34391.0,0.3519]
[1625298823352,0.24057544,34396.0,34391.0,4.9966]
[1625298823550,0.24057544,34396.0,34395.0,1.6104918]
[1625298823800,0.24057544,34396.0,34395.0,1.6694918]
[1625298823901,0.24057544,34396.0,34395.0,1.7284918]
[1625298824202,0.24057544,34396.0,34395.0,2.85516003]
[1625298824752,0.24057544,34396.0,34395.0,4.62402381]
[1625298826206,0.24057544,34396.0,34395.0,3.27731091]
[1625298827408,0.24057544,34396.0,34395.0,4.56570248]
[1625298828461,0.24057544,34396.0,34395.0,4.62470248]
[1625298828761,0.24057544,34396.0,34395.0,4.56570248]
[1625298828911,0.24057544,34396.0,34395.0,4.62470248]
[1625298830212,0.24057544,34396.0,34395.0,4.56570248]
[1625298830361,0.24057544,34396.0,34395.0,4.62470248]
[1625298832615,0.24057544,34401.0,34395.0,4.62470248]
[1625298832815,0.24057544,34401.0,34400.0,0.24057544]
[1625298832915,0.24057544,34401.0,34400.0,0.52035544]
[1625298833016,0.24057544,34401.0,34400.0,3.38168046]
[1625298833166,0.24057544,34401.0,34400.0,8.08228046]
[1625298833366,0.24057544,34401.0,34400.0,8.02328046]
[1625298833466,0.24057544,34401.0,34400.0,3.38168046]
[1625298833564,0.24057544,34401.0,34400.0,3.32268046]
[1625298833665,0.24057544,34401.0,34400.0,3.38168046]
[1625298833765,0.24057544,34401.0,34400.0,3.32268046]
[1625298833865,0.24057544,34401.0,34400.0,3.38168046]
[1625298833965,0.24057544,34401.0,34400.0,3.32268046]
[1625298834171,0.24057544,34401.0,34400.0,3.26368046]
[1625298834519,0.24057544,34401.0,34400.0,3.32268046]
[1625298834669,0.24057544,34401.0,34400.0,2.19307604]
[1625298834769,0.24057544,34401.0,34400.0,2.13407604]
[1625298834918,0.24057544,34401.0,34400.0,2.19307604]
[1625298835019,0.24057544,34401.0,34400.0,3.32388853]
[1625298835420,0.24057544,34401.0,34400.0,3.26488853]
[1625298835669,0.24057544,34401.0,34400.0,2.13407604]
[1625298837223,0.24057544,34401.0,34400.0,2.19307604]
[1625298837873,0.24057544,34401.0,34400.0,1.5475878]
[1625298838224,0.24057544,34401.0,34400.0,2.19389213]
[1625298839580,0.24057544,34401.0,34400.0,3.32388641]
[1625298839779,0.24057544,34401.0,34400.0,3.26488641]
[1625298840479,0.24057544,34401.0,34400.0,3.32388641]
[1625298840730,0.24057544,34401.0,34400.0,2.19389213]
[1625298840931,0.24057544,34401.0,34400.0,2.13489213]
[1625298841635,0.24057544,34401.0,34400.0,2.19389213]
[1625298841784,0.24057544,34401.0,34400.0,3.32528914]
[1625298842085,0.24057544,34401.0,34400.0,2.19389213]
[1625298843337,0.24057544,34401.0,34400.0,3.32484693]
[1625298843740,0.24057544,34401.0,34400.0,2.19389213]
[1625298845394,0.24057544,34401.0,34400.0,2.13489213]
[1625298846195,0.24057544,34401.0,34400.0,2.19389213]
[1625298846448,0.24057544,34401.0,34400.0,3.32224328]
[1625298846651,2.40418543,34427.0,34400.0,3.38124328]
[1625298846747,0.057,34418.0,34400.0,3.46804328]
[1625298846848,0.057,34418.0,34407.0,0.90083241]
[1625298846951,0.057,34418.0,34410.0,0.72172632]
[1625298847047,0.057,34418.0,34410.0,0.78072632]
[1625298847148,0.116,34418.0,34410.0,0.83972632]
[1625298847251,0.057,34418.0,34410.0,0.83972632]
[1625298847349,0.057,34418.0,34410.0,0.78072632]
[1625298847700,0.057,34418.0,34410.0,1.42367971]
[1625298847849,0.29757544,34420.0,34410.0,1.48267971]
[1625298847949,0.35657544,34420.0,34410.0,1.48267971]
[1625298848102,0.35657544,34420.0,34411.0,0.64273462]
[1625298848249,0.35657544,34420.0,34411.0,0.76073462]
[1625298848650,0.35657544,34420.0,34412.0,0.64243165]
[1625298848750,0.35657544,34420.0,34412.0,0.70143165]
[1625298848901,0.35657544,34420.0,34419.0,0.48115088]
[1625298849002,0.35657544,34420.0,34419.0,0.54015088]
[1625298849705,0.35657544,34420.0,34419.0,0.48115088]
[1625298849804,0.35657544,34420.0,34419.0,0.54015088]
[1625298850460,0.35657544,34420.0,34419.0,0.48115088]
[1625298851565,0.29757544,34420.0,34419.0,0.48115088]
[1625298853465,0.29757544,34420.0,34419.0,0.54015088]
[1625298854366,0.29757544,34420.0,34419.0,0.48115088]
[1625298854767,0.29757544,34420.0,34419.0,0.54015088]
[1625298856620,0.35657544,34420.0,34419.0,0.54015088]
[1625298856721,0.29757544,34420.0,34419.0,0.54015088]
[1625298856822,0.35657544,34420.0,34419.0,0.54015088]
[1625298857623,0.35657544,34420.0,34419.0,0.48115088]
[1625298858425,0.35657544,34420.0,34419.0,0.54015088]
[1625298858925,0.29757544,34420.0,34419.0,0.54015088]
[1625298859925,0.29757544,34420.0,34419.0,0.48115088]
[1625298860274,0.29757544,34420.0,34419.0,0.54015088]
[1625298860827,0.35657544,34420.0,34419.0,0.54015088]
[1625298860925,0.29757544,34420.0,34419.0,0.54015088]
[1625298861177,0.35657544,34420.0,34419.0,0.54015088]
[1625298861277,0.29757544,34420.0,34419.0,0.48115088]
[1625298861376,0.35657544,34420.0,34419.0,0.48115088]
[1625298861878,0.35657544,34420.0,34419.0,0.54015088]
[1625298861977,0.29757544,34420.0,34419.0,0.54015088]
[1625298865132,0.29757544,34420.0,34419.0,0.48115088]
[1625298865232,0.29757544,34420.0,34419.0,0.54015088]
[1625298865333,0.29757544,34420.0,34419.0,0.48115088]
[1625298865583,0.29757544,34420.0,34419.0,0.84048088]
[1625298865734,0.24057544,34420.0,34419.0,0.84048088]
[1625298867235,0.18157544,34420.0,34419.0,0.78148088]
[1625298867336,0.18157544,34420.0,34419.0,0.84048088]
[1625298869140,0.24057544,34424.0,34419.0,0.84048088]
[1625298869240,0.29957544,34424.0,34419.0,0.84048088]
[1625298869340,0.24057544,34424.0,34419.0,0.89948088]
[1625298869540,0.24057544,34424.0,34419.0,0.98768088]
[1625298869740,0.9463,34430.0,34419.0,0.98768088]
[1625298869890,1.0053,34430.0,34419.0,0.98768088]
[1625298869989,0.059,34430.0,34419.0,0.98768088]
[1625298870642,0.057,34435.0,34419.0,0.98768088]
[1625298870793,0.29957544,34431.0,34419.0,0.98768088]
[1625298870894,0.29957544,34431.0,34419.0,1.62616118]
[1625298870994,0.24057544,34431.0,34419.0,1.62616118]
[1625298871093,0.24057544,34431.0,34430.0,0.74595088]
[1625298871197,0.29957544,34431.0,34430.0,0.80495088]
[1625298871396,0.24057544,34431.0,34430.0,0.80495088]
[1625298871594,0.29957544,34431.0,34430.0,0.80495088]
[1625298872744,0.24057544,34431.0,34430.0,0.80495088]
[1625298873347,0.24057544,34431.0,34430.0,0.86395088]
[1625298873447,0.057,34435.0,34430.0,0.86395088]
[1625298873599,0.24057544,34436.0,34430.0,0.86395088]
[1625298875047,0.24057544,34436.0,34435.0,0.24057544]
[1625298875347,0.24057544,34436.0,34435.0,0.29957544]
[1625298876451,0.29757544,34442.0,34435.0,0.29957544]
[1625298876598,0.35657544,34442.0,34435.0,0.29957544]
[1625298876801,0.29957544,34442.0,34435.0,0.29957544]
[1625298877002,0.24057544,34442.0,34435.0,0.29957544]
[1625298877102,0.24057544,34442.0,34441.0,0.55024544]
[1625298877200,0.24057544,34442.0,34441.0,0.60924544]
[1625298879010,0.24057544,34442.0,34441.0,0.55024544]
[1625298879513,0.24057544,34442.0,34441.0,0.60924544]
[1625298880162,0.24057544,34442.0,34441.0,0.55024544]
[1625298880312,0.24057544,34442.0,34441.0,0.60924544]
[1625298880414,0.24057544,34442.0,34441.0,0.55024544]
[1625298880965,0.24057544,34442.0,34441.0,0.60924544]
[1625298881316,0.24057544,34442.0,34441.0,0.66824544]
[1625298881766,0.24057544,34442.0,34441.0,0.60924544]
[1625298881968,0.24057544,34442.0,34441.0,0.66824544]
[1625298883121,0.24057544,34447.0,34441.0,0.66824544]
[1625298883922,0.29757544,34447.0,34441.0,0.66824544]
[1625298884173,0.24057544,34447.0,34441.0,0.66824544]
[1625298884424,0.24057544,34451.0,34441.0,0.66824544]
[1625298884622,0.29957544,34451.0,34441.0,0.66824544]
[1625298884824,0.24057544,34451.0,34441.0,0.66824544]
[1625298884925,0.057,34450.0,34441.0,0.66824544]
[1625298885027,0.057,34450.0,34441.0,0.60924544]
[1625298885126,0.057,34450.0,34449.0,0.48115088]
[1625298885227,0.057,34450.0,34449.0,0.77367088]
[1625298885627,0.24057544,34451.0,34449.0,0.83267088]
[1625298885779,0.29957544,34451.0,34449.0,0.83267088]
[1625298885877,0.057,34450.0,34449.0,0.83267088]
[1625298885977,0.29957544,34451.0,34449.0,0.83267088]
[1625298885978,0.24057544,34451.0,34449.0,0.83267088]
[1625298886081,0.29957544,34451.0,34449.0,0.83267088]
[1625298886779,0.24057544,34461.0,34449.0,0.83267088]
[1625298886936,0.057,34459.0,34449.0,0.83267088]